fUSD/lending_fUSD_20260403
["ID","MTS","AMOUNT","RATE_DAILY","PERIOD"]
[419330269,1775184642598,-500.0,0.00015326,7]
[419330270,1775184642607,-518.41470053,0.00015326,7]
[419330271,1775184642616,-500.0,0.00015326,7]
[419330272,1775184642626,-500.0,0.00015326,7]
[419330273,1775184642635,-500.0,0.00015326,7]
[419330274,1775184642645,-500.0,0.00015326,7]
[419330275,1775184642654,-500.0,0.00015326,7]
[419330276,1775184642664,-500.0,0.00015326,7]
[419330277,1775184642673,-500.0,0.00015326,7]
[419330278,1775184642682,-500.0,0.00015326,7]
[419330279,1775184642692,-500.0,0.00015326,7]
[419330280,1775184642701,-500.0,0.00015326,7]
[419330281,1775184642710,-500.0,0.00015326,7]
[419330282,1775184642720,-500.0,0.00015326,7]
[419330283,1775184642729,-500.0,0.00015326,7]
[419330284,1775184642738,-500.0,0.00015326,7]
[419330285,1775184642747,-500.0,0.00015326,7]
[419330286,1775184642756,-500.0,0.00015326,7]
[419330287,1775184642765,-271.8807013,0.00015326,7]
[419330288,1775184642775,-150.0,0.00015326,7]
[419330289,1775184642784,-200.17806703,0.00015326,7]
[419330290,1775184642793,-2222.7202367,0.00015366,2]
[419330291,1775184642803,-778.15,0.0001543,2]
[419330292,1775184642812,-778.15,0.0001543,2]
[419330293,1775184642821,-345.75903693,0.00015438,2]
[419330294,1775184642830,-168.0,0.00015567,2]
[419330295,1775184642839,-180.3054,0.000156,7]
[419330296,1775184642848,-154.5,0.000156,2]
[419330297,1775184642857,-168.0,0.00015629,2]
[419330298,1775184642866,-345.75903693,0.00015669,2]
[419330299,1775184642877,-162.0,0.0001568,2]
[419330300,1775184642886,-168.0,0.00015689,2]
[419330301,1775184642895,-502.778,0.0001571,2]
[419330302,1775184642905,-500.0,0.00015716,2]
[419330303,1775184642914,-500.0,0.00015716,2]
[419330304,1775184642924,-500.0,0.00015716,2]
[419330305,1775184642933,-500.0,0.00015716,2]
[419330306,1775184642943,-500.0,0.00015716,2]
[419330307,1775184642952,-293.47632795,0.00015716,2]
[419330308,1775184642961,-150.0,0.00015716,2]
[419330309,1775184642970,-150.0,0.00015716,2]
[419330310,1775184642980,-210.81522751,0.00015716,2]
[419330311,1775184642992,-500.0,0.00015716,2]
[419330312,1775184643001,-500.0,0.00015716,2]
[419330313,1775184643011,-560.70104652,0.00015716,2]
[419330314,1775184643020,-168.0,0.00015739,2]
[419330315,1775184643030,-157.0,0.000158,2]
[419330316,1775184643039,-157.0,0.000158,2]
[419330317,1775184643049,-778.15,0.00015824,2]
[419330318,1775184643059,-1601.2702854,0.00015838,2]
[419330319,1775184643068,-30984.5574358,0.00015838,2]
[419330320,1775184643078,-153.548287,0.00015838,2]
[419330321,1775184643088,-186.260528,0.00015838,2]
[419330322,1775184643098,-1046.0,0.00015868,2]
[419330323,1775184643108,-1346.0,0.00015868,2]
[419330324,1775184643118,-622.0,0.00015868,2]
[419330325,1775184643127,-150.195,0.00015868,2]
[419330326,1775184643137,-1263.0,0.00015868,2]
[419330327,1775184643147,-3769.0,0.00015868,2]
[419330328,1775184643156,-415.0,0.00015868,2]
[419330329,1775184643166,-500.0,0.00015872,2]
[419330330,1775184643175,-351.79192788,0.000159,2]
[419330331,1775184643185,-5000.0,0.000159,2]
[419330332,1775184643194,-151.0,0.000159,2]
[419330333,1775184643204,-351.79192788,0.000159,2]
[419330334,1775184643214,-345.75903693,0.000159,2]
[419330335,1775184643223,-171.75458921,0.000159,2]
[419330336,1775184643233,-204.62120724,0.00015984,2]
[419330337,1775184643243,-152.58312656,0.00015984,2]
[419330338,1775184643252,-221.80957612,0.0001599,2]
[419330339,1775184643262,-221.80957612,0.0001599,2]
[419330340,1775184643272,-221.80957612,0.0001599,2]
[419330341,1775184643282,-155.0,0.00015999,2]
[419330342,1775184643292,-778.15,0.00015999,2]
[419330343,1775184643302,-778.15,0.00015999,2]
[419330344,1775184643311,-778.15,0.00015999,2]
[419330345,1775184643321,-778.15,0.00015999,2]
[419330347,1775184643330,-778.15,0.00015999,2]
[419330349,1775184643340,-778.15,0.00015999,2]
[419330351,1775184643350,-778.15,0.00015999,2]
[419330352,1775184643360,-778.15,0.00015999,2]
[419330353,1775184643371,-778.15,0.00015999,2]
[419330355,1775184643381,-778.15,0.00015999,2]
[419330357,1775184643391,-778.15,0.00015999,2]
[419330359,1775184643400,-778.15,0.00015999,2]
[419330360,1775184643410,-778.15,0.00015999,2]
[419330361,1775184643421,-778.15,0.00015999,2]
[419330362,1775184643431,-778.15,0.00015999,2]
[419330364,1775184643440,-778.15,0.00015999,2]
[419330365,1775184643450,-778.15,0.00015999,2]
[419330366,1775184643460,-778.15,0.00015999,2]
[419330367,1775184643469,-778.15,0.00015999,2]
[419330368,1775184643479,-778.15,0.00015999,2]
[419330369,1775184643489,-778.19715828,0.00015999,2]
[419330370,1775184643500,-194.07757091,0.00015999,2]
[419330371,1775184643509,-500.0,0.00015999,2]
[419330372,1775184643519,-500.0,0.00015999,2]
[419330373,1775184643530,-500.0,0.00015999,2]
[419330374,1775184643540,-165.32797757,0.00015999,2]
[419330375,1775184643552,-501.50264744,0.00015999,2]
[419330376,1775184643562,-500.0,0.00015999,2]
[419330377,1775184643572,-500.0,0.00015999,2]
[419330378,1775184643582,-500.0,0.00015999,2]
[419330379,1775184643592,-500.0,0.00015999,2]
[419330380,1775184643603,-500.0,0.00015999,2]
[419330381,1775184643613,-500.0,0.00015999,2]
[419330382,1775184643623,-500.0,0.00015999,2]
[419330383,1775184643632,-175.47478232,0.00015999,2]
[419330384,1775184643642,-500.0,0.00015999,2]
[419330385,1775184643651,-500.0,0.00015999,2]
[419330386,1775184643661,-500.0,0.00015999,2]
[419330387,1775184643671,-500.0,0.00015999,2]
[419330388,1775184643680,-500.0,0.00015999,2]
[419330389,1775184643690,-500.0,0.00015999,2]
[419330390,1775184643699,-500.0,0.00015999,2]
[419330391,1775184643708,-500.0,0.00015999,2]
[419330392,1775184643718,-500.0,0.00015999,2]
[419330393,1775184643728,-500.0,0.00015999,2]
[419330394,1775184643737,-500.0,0.00015999,2]
[419330395,1775184643748,-500.0,0.00015999,2]
[419330396,1775184643757,-500.0,0.00015999,2]
[419330397,1775184643766,-500.0,0.00015999,2]
[419330398,1775184643776,-500.0,0.00015999,2]
[419330399,1775184643785,-500.0,0.00015999,2]
[419330400,1775184643796,-500.0,0.00015999,2]
[419330401,1775184643806,-500.0,0.00015999,2]
[419330402,1775184643816,-500.0,0.00015999,2]
[419330403,1775184643825,-500.0,0.00015999,2]
[419330404,1775184643836,-500.0,0.00015999,2]
[419330405,1775184643845,-500.0,0.00015999,2]
[419330406,1775184643854,-500.0,0.00015999,2]
[419330407,1775184643864,-245.79941872,0.00015999,2]
[419330423,1775184644149,-266.22504186,0.00015999,2]
[419330426,1775184644179,-500.0,0.00015999,2]
[419330428,1775184644189,-500.0,0.00015999,2]
[419330429,1775184644199,-500.0,0.00015999,2]
[419330430,1775184644209,-500.0,0.00015999,2]
[419330431,1775184644219,-500.0,0.00015999,2]
[419330433,1775184644229,-200.0,0.00015999,2]
[419330435,1775184644239,-500.0,0.00015999,2]
[419330437,1775184644248,-500.0,0.00015999,2]
[419330439,1775184644258,-449.58500994,0.00015999,2]
[419330441,1775184644268,-501.33933523,0.00015999,2]
[419330442,1775184644277,-245.58844593,0.00015999,2]
[419330443,1775184644286,-159.0,0.00016,5]
[419330444,1775184644295,-154.0,0.00016,5]
[419330445,1775184644304,-61727.10451476,0.00016,2]
[419330446,1775184644318,-670.59943,0.00016,2]
[419330447,1775184644574,-5102.42751525,0.00016,2]
[419330448,1775184644611,-375.00026326,0.00016,2]
[419330450,1775184646145,-2470.0,0.00015868,2]
[419330451,1775184646154,-23789.93019233,0.00016,2]
[419330452,1775184646165,-37489.90181928,0.00016,2]
[419330459,1775184647603,-507.5,0.00016,2]
[419330460,1775184647683,-2393.12166115,0.00016,2]
[419330461,1775184647778,-620.04012998,0.00016,2]
[419330462,1775184777359,195.25,7.492e-05,2]
[419330463,1775184777566,195.25,7.886e-05,2]
[419330464,1775184777967,195.25,8.28e-05,2]
[419330465,1775184790492,283.0,8.28e-05,3]
[419330466,1775184850380,289.0,8.28e-05,3]
[419330467,1775184911357,275.0,8.28e-05,3]
[419330468,1775184911390,152.0,8.28e-05,3]
[419330469,1775184968039,261.0,8.28e-05,3]
[419330471,1775185027564,248.0,8.28e-05,3]
[419330472,1775185087723,236.0,8.28e-05,3]
[419330473,1775185146323,224.0,8.28e-05,3]
[419330474,1775185147981,-195.25,8.675e-05,2]
[419330475,1775185148005,-350.13410524,8.675e-05,2]
[419330476,1775185148029,-259.42550917,8.675e-05,2]
[419330477,1775185148052,-195.25,9.069e-05,2]
[419330478,1775185148075,-195.25,9.463e-05,2]
[419330479,1775185148098,-300.0,9.541e-05,2]
[419330480,1775185148122,-5000.0,9.542e-05,2]
[419330481,1775185148145,-250.0,9.542e-05,2]
[419330482,1775185148168,-195.25,9.858e-05,2]
[419330483,1775185148192,-195.25,0.00010252,2]
[419330484,1775185148217,-150.0,0.000103,2]
[419330485,1775185148241,-224.0,0.00010302,3]
[419330486,1775185148265,-420.0,0.00010495,2]
[419330487,1775185148288,-195.25,0.00010646,2]
[419330488,1775185148312,-195.25,0.0001104,2]
[419330489,1775185148334,-195.25,0.00011435,2]
[419330490,1775185148356,-200.0,0.00011513,2]
[419330491,1775185148379,-587.0,0.00011545,2]
[419330492,1775185148404,-180.3297,0.000116,7]
[419330493,1775185148427,-210.88264644,0.000117,2]
[419330494,1775185148450,-195.25,0.00011829,2]
[419330495,1775185149793,110.97803915,9.542e-05,2]
[419330496,1775185207501,202.0,8.28e-05,3]
[419330497,1775185207778,-287.0,9.542e-05,2]
[419330498,1775185207803,-183.98654291,9.542e-05,2]
[419330499,1775185207827,-139.02196085,9.542e-05,2]
[419330500,1775185207849,-500.0,9.542e-05,2]
[419330501,1775185207874,-500.0,9.542e-05,2]
[419330502,1775185207897,-202.0,0.00010302,3]
[419330503,1775185207919,-5139.63528494,0.00010496,2]
[419330504,1775185207941,-250.0,0.00010496,2]
[419330505,1775185207964,-150.0363523,0.00010496,2]
[419330506,1775185211936,152.0,0.00012,2]
[419330507,1775185253361,-195.25,0.00012223,2]
[419330508,1775185253384,-2000.0,0.00012248,2]
[419330509,1775185253410,-202.0,0.00012324,3]
[419330510,1775185253436,-99.069859,0.00012465,2]
[419330511,1775185267827,171.0,8.28e-05,3]
[419330512,1775185326392,20.65734819,8.28e-05,3]
[419330513,1775185326422,142.34265181,8.28e-05,3]
[419330514,1775185386085,155.0,8.28e-05,3]
[419330515,1775185413421,-155.0,0.00010302,3]
[419330516,1775185413445,-155.0,0.00012324,3]
[419330517,1775185413467,-690.0,0.00012465,2]
[419330518,1775185447315,155.0,8.28e-05,3]
[419330520,1775185492293,-155.0,0.00010681,3]
[419330521,1775185492316,-945.0,0.00011507,2]
[419330522,1775185508256,152.0,8.28e-05,3]
[419330523,1775185512268,155.0,8.28e-05,3]
[419330524,1775185525071,-155.0,0.00011024,3]
[419330525,1775185525096,-949.0,0.00011507,2]
[419330526,1775185567722,155.0,8.28e-05,3]
[419330528,1775185628943,155.0,8.28e-05,3]
[419330529,1775185660172,-141.15,0.00011507,2]
[419330530,1775185660194,-319.0,0.00011507,2]
[419330531,1775185660217,-139.85,0.00011773,3]
[419330532,1775185675251,-15.15,0.00011773,3]
[419330533,1775185731059,-155.0,0.000124,2]
[419330534,1775185731082,-31.0,0.00012465,2]
[419330535,1775185746498,-1001.460141,0.00012465,2]
[419330536,1775185746519,-155.0,0.00012549,3]
[419330537,1775185746543,-195.25,0.00012618,2]
[419330538,1775185746566,-167.54,0.00012655,2]
[419330539,1775185746587,-250.0,0.00012658,2]
[419330540,1775185746608,-1200.0,0.00012951,2]
[419330541,1775185746629,-300.0,0.00012951,2]
[419330542,1775185746650,-300.0,0.00012952,2]
[419330543,1775185746671,-1200.0,0.00012952,2]
[419330544,1775185746692,-300.0,0.00012952,2]
[419330545,1775185746716,-2128.350745,0.00012953,2]
[419330546,1775185752464,155.0,8.28e-05,3]
[419330548,1775185811582,152.0,8.28e-05,3]
[419330549,1775185811647,155.0,8.28e-05,3]
[419330554,1775185831354,-1635.36487997,9.5e-05,3]
[419330555,1775185831365,-1632.70955247,9.5e-05,3]
[419330556,1775185831411,-2424.07895351,9.5e-05,3]
[419330557,1775185831422,-4212.56134968,9.5e-05,3]
[419330558,1775185831433,-4206.9249154,9.5e-05,3]
[419330559,1775185831470,-3016.37873719,9.5e-05,3]
[419330560,1775185831481,-344.81,9.5e-05,3]
[419330561,1775185831492,-770.47203665,9.5e-05,3]
[419330562,1775185831576,-257.8752,9.5e-05,3]
[419330563,1775185831588,-254.14013485,9.5e-05,3]
[419330564,1775185831599,-369.98931999,9.5e-05,3]
[419330565,1775185831685,-1167.00146,9.5e-05,3]
[419330566,1775185831696,-2800.96661148,9.5e-05,3]
[419330567,1775185840999,-1649.83054606,9.5e-05,3]
[419330568,1775185841011,-7802.28725334,9.5e-05,3]
[419330569,1775185841022,-394.48975868,9.5e-05,3]
[419330570,1775185841031,-53.56001105,0.00011572,2]
[419330571,1775185841042,-2060.49487445,0.00011572,2]
[419330572,1775185841051,-736.81,0.00012821,2]
[419330573,1775185841060,-1236.52730426,0.00012953,2]
[419330586,1775185841540,-7348.41195074,0.00012953,2]
[419330587,1775185841549,-195.25,0.00013012,2]
[419330588,1775185841563,-1301.56,0.00013023,2]
[419330589,1775185841571,-2114.0548855,0.00013026,2]
[419330590,1775185841580,-166.66,0.00013042,2]
[419330591,1775185841589,-150.0,0.000131,2]
[419330592,1775185841599,-504.0,0.00013111,2]
[419330593,1775185841608,-195.25,0.00013406,2]
[419330594,1775185841619,-137956.9531,0.00013523,2]
[419330595,1775185841629,-501.60231314,0.00013573,2]
[419330596,1775185841638,-150.0,0.00013622,2]
[419330597,1775185841648,-345.75903701,0.00013623,2]
[419330598,1775185841657,-166.66,0.00013699,2]
[419330599,1775185841666,-167.54,0.0001371,2]
[419330600,1775185841676,-607.04574826,0.00013711,2]
[419330601,1775185841686,-153.7831879,0.00013711,2]
[419330602,1775185841695,-195.0,0.00013711,2]
[419330603,1775185841704,-200.0,0.00013714,2]
[419330604,1775185841713,-151.0,0.00013714,2]
[419330605,1775185841722,-155.07530094,0.00013714,2]
[419330606,1775185841732,-500.0,0.00013714,2]
[419330607,1775185841741,-500.0,0.00013714,2]
[419330608,1775185841751,-500.0,0.00013714,2]
[419330609,1775185841760,-500.0,0.00013714,2]
[419330610,1775185841769,-500.0,0.00013714,2]
[419330611,1775185841779,-400.85944213,0.00013714,2]
[419330612,1775185841790,-151.0,0.00013714,2]
[419330613,1775185841802,-151.0,0.00013714,2]
[419330614,1775185841812,-151.0,0.00013714,2]
[419330615,1775185841822,-151.0,0.00013714,2]
[419330616,1775185841831,-151.0,0.00013714,2]
[419330617,1775185841841,-151.0,0.00013714,2]
[419330618,1775185841850,-151.0,0.00013714,2]
[419330619,1775185841860,-151.0,0.00013714,2]
[419330620,1775185841869,-151.0,0.00013714,2]
[419330621,1775185841878,-151.0,0.00013714,2]
[419330622,1775185841888,-151.0,0.00013714,2]
[419330623,1775185841899,-151.0,0.00013714,2]
[419330624,1775185841908,-151.0,0.00013714,2]
[419330625,1775185841918,-151.0,0.00013714,2]
[419330626,1775185841927,-151.0,0.00013714,2]
[419330627,1775185841936,-151.0,0.00013714,2]
[419330628,1775185841946,-151.0,0.00013714,2]
[419330629,1775185841956,-151.0,0.00013714,2]
[419330630,1775185841965,-151.0,0.00013714,2]
[419330631,1775185841974,-153.40971064,0.00013714,2]
[419330632,1775185841983,-500.0,0.00013714,2]
[419330633,1775185841992,-500.0,0.00013722,2]
[419330634,1775185842002,-540.46199172,0.00013722,2]
[419330635,1775185842011,-561.88584574,0.00013722,2]
[419330636,1775185842019,-239.05058027,0.00013722,2]
[419330637,1775185842029,-933.764,0.00013722,2]
[419330638,1775185842038,-2000.0,0.0001378,2]
[419330639,1775185842048,-157.0,0.000138,2]
[419330640,1775185842057,-157.0,0.000138,2]
[419330641,1775185842066,-195.25,0.00013801,2]
[419330642,1775185842075,-514.92714135,0.00013822,2]
[419330643,1775185842084,-466.50164258,0.00013822,2]
[419330644,1775185842094,-166.66,0.00013836,2]
[419330645,1775185842102,-345.75903693,0.00013876,2]
[419330646,1775185842111,-513.10680274,0.00013932,2]
[419330647,1775185842121,-508.57040611,0.00013932,2]
[419330648,1775185842130,-778.15,0.00013932,2]
[419330649,1775185842139,-778.15,0.00013932,2]
[419330650,1775185842148,-166.66,0.00013973,2]
[419330651,1775185842158,-157.0,0.000141,2]
[419330652,1775185842167,-157.0,0.000141,2]
[419330653,1775185842176,-166.66,0.0001411,2]
[419330654,1775185842185,-345.75903693,0.00014129,2]
[419330655,1775185842194,-195.25,0.00014195,2]
[419330656,1775185842203,-166.66,0.00014247,2]
[419330657,1775185842212,-180.2762,0.000143,7]
[419330658,1775185842222,-345.75903693,0.00014382,2]
[419330659,1775185842231,-166.66,0.00014384,2]
[419330660,1775185842240,-150.0,0.000144,2]
[419330661,1775185842249,-150.0,0.000144,2]
[419330662,1775185842258,-150.0,0.000144,2]
[419330663,1775185842267,-150.0,0.000144,2]
[419330664,1775185842276,-150.0,0.000144,2]
[419330665,1775185842284,-150.0,0.000144,2]
[419330666,1775185842293,-150.37060847,0.000144,2]
[419330667,1775185842302,-150.0,0.000144,2]
[419330668,1775185842312,-150.0,0.000144,2]
[419330669,1775185842321,-150.0,0.000144,2]
[419330670,1775185842330,-150.0,0.000144,2]
[419330671,1775185842339,-150.0,0.000144,2]
[419330672,1775185842348,-2114.0548855,0.0001448,2]
[419330673,1775185842357,-150.0,0.00014578,2]
[419330674,1775185842367,-195.25,0.00014589,2]
[419330675,1775185842376,-157.0,0.000146,2]
[419330676,1775185842385,-155.5,0.000146,2]
[419330677,1775185842395,-150.0,0.000146,2]
[419330678,1775185842404,-150.0,0.000146,2]
[419330679,1775185842414,-150.0,0.00014629,2]
[419330680,1775185842424,-150.0,0.00014629,2]
[419330681,1775185842434,-345.75903693,0.00014635,2]
[419330682,1775185842443,-155.0,0.00014684,3]
[419330684,1775185842452,-150.0,0.0001472,2]
[419330686,1775185842461,-209.0,0.00014739,2]
[419330687,1775185842471,-150.0,0.00014756,2]
[419330689,1775185842480,-271.139051,0.00014762,2]
[419330691,1775185842489,-167.54,0.00014764,2]
[419330693,1775185842498,-150.0,0.000148,2]
[419330695,1775185842507,-150.0,0.000148,2]
[419330696,1775185842517,-150.0,0.00014857,2]
[419330698,1775185842526,-150.0,0.00014857,2]
[419330700,1775185842536,-345.75903693,0.00014888,2]
[419330702,1775185842545,-150.0,0.00014933,2]
[419330704,1775185842555,-150.0,0.00014933,2]
[419330705,1775185842565,-150.0,0.00014933,2]
[419330706,1775185842574,-195.25,0.00014983,2]
[419330707,1775185842584,-150.0,0.00015,2]
[419330708,1775185842593,-150.0,0.00015,2]
[419330709,1775185842603,-150.0,0.0001504,2]
[419330710,1775185842613,-150.0,0.00015086,2]
[419330711,1775185842623,-150.0,0.00015086,2]
[419330712,1775185842632,-150.0,0.00015111,2]
[419330713,1775185842641,-345.75903693,0.00015141,2]
[419330714,1775185842650,-202.81154158,0.00015199,2]
[419330715,1775185842659,-150.0,0.000152,2]
[419330716,1775185842669,-150.0,0.000152,2]
[419330717,1775185842680,-150.0,0.000152,2]
[419330718,1775185842690,-150.0,0.00015289,2]
[419330719,1775185842700,-20730.06,0.0001531,2]
[419330720,1775185842709,-2000.0,0.00015311,2]
[419330721,1775185842719,-150.0,0.00015314,2]
[419330722,1775185842727,-150.0,0.00015314,2]
[419330723,1775185842737,-150.0,0.0001536,2]
[419330724,1775185842747,-345.75903693,0.00015394,2]
[419330725,1775185842757,-150.0,0.000154,2]
[419330726,1775185842766,-150.0,0.000154,2]
[419330727,1775185842775,-150.0,0.00015467,2]
[419330728,1775185842785,-150.0,0.00015467,2]
[419330729,1775185842794,-150.0,0.00015467,2]
[419330730,1775185842803,-3521.0,0.00015469,2]
[419330731,1775185842814,-1346.0,0.00015469,2]
[419330732,1775185842824,-1046.0,0.00015469,2]
[419330733,1775185842834,-216.6635,0.000155,12]
[419330734,1775185842844,-179.35,0.00015507,2]
[419330735,1775185842855,-1852.42,0.00015513,2]
[419330736,1775185842864,-150.195,0.00015515,2]
[419330737,1775185842874,-1263.0,0.00015515,2]
[419330738,1775185842885,-1217.0,0.00015515,2]
[419330739,1775185842894,-925.0,0.00015515,2]
[419330740,1775185842903,-150.0,0.00015543,2]
[419330741,1775185842913,-150.0,0.00015543,2]
[419330742,1775185842922,-2470.0,0.00015564,2]
[419330743,1775185842932,-415.0,0.00015564,2]
[419330744,1775185842941,-150.0,0.000156,2]
[419330745,1775185842951,-150.0,0.000156,2]
[419330746,1775185842960,-150.0,0.00015644,2]
[419330747,1775185842969,-345.75903693,0.00015647,2]
[419330748,1775185842980,-150.0,0.0001568,2]
[419330749,1775185842990,-160.0,0.0001568,7]
[419330750,1775185843000,-388.988271,0.0001568,7]
[419330751,1775185843010,-617.976543,0.0001568,7]
[419330752,1775185843019,-168.0,0.00015684,2]
[419330753,1775185843028,-778.15,0.00015729,2]
[419330754,1775185843039,-150.0,0.00015771,2]
[419330755,1775185843048,-150.0,0.00015771,2]
[419330756,1775185843058,-150.0,0.000158,2]
[419330757,1775185843068,-150.0,0.000158,2]
[419330758,1775185843078,-167.54,0.00015819,2]
[419330759,1775185843088,-150.0,0.00015822,2]
[419330760,1775185843097,-1785.0,0.00015864,2]
[419330761,1775185843107,-272.0,0.00015869,2]
[419330762,1775185843118,-217.0,0.00015869,2]
[419330763,1775185843127,-200.0,0.00015869,2]
[419330764,1775185843136,-250.0,0.00015869,2]
[419330765,1775185843146,-224.774,0.00015869,2]
[419330766,1775185843155,-250.0,0.00015869,2]
[419330767,1775185843164,-238.2,0.00015869,2]
[419330768,1775185843174,-250.0,0.00015869,2]
[419330770,1775185843184,-162.834,0.00015869,2]
[419330772,1775185843194,-250.0,0.00015869,2]
[419330773,1775185843205,-500.0,0.00015872,2]
[419330775,1775185843215,-5000.0,0.00015898,2]
[419330777,1775185843226,-971.8449996,0.000159,2]
[419330779,1775185843236,-345.75903693,0.000159,2]
[419330780,1775185843246,-171.75458921,0.000159,2]
[419330782,1775185843255,-1055.37578364,0.000159,2]
[419330784,1775185843265,-207.92254637,0.000159,2]
[419330786,1775185843274,-2114.0548855,0.00015934,2]
[419330787,1775185843283,-178.6021669,0.00015984,2]
[419330789,1775185843293,-304.75431263,0.0001599,2]
[419330791,1775185843303,-304.75431263,0.0001599,2]
[419330793,1775185843312,-304.75431263,0.0001599,2]
[419330795,1775185843322,-54132.4599162,0.00015998,2]
[419330796,1775185843332,-151.0,0.00015998,2]
[419330798,1775185843341,-186.260528,0.00015998,2]
[419330800,1775185843351,-155.0,0.00015999,2]
[419330801,1775185843360,-778.15,0.00015999,2]
[419330803,1775185843371,-778.15,0.00015999,2]
[419330805,1775185843381,-778.15,0.00015999,2]
[419330807,1775185843391,-778.15,0.00015999,2]
[419330810,1775185843401,-778.15,0.00015999,2]
[419330812,1775185843411,-778.15,0.00015999,2]
[419330813,1775185843420,-778.15,0.00015999,2]
[419330814,1775185843430,-778.15,0.00015999,2]
[419330815,1775185843440,-778.15,0.00015999,2]
[419330816,1775185843449,-778.15,0.00015999,2]
[419330817,1775185843458,-778.15,0.00015999,2]
[419330818,1775185843468,-778.15,0.00015999,2]
[419330819,1775185843478,-778.15,0.00015999,2]
[419330820,1775185843488,-778.15,0.00015999,2]
[419330821,1775185843498,-778.15,0.00015999,2]
[419330822,1775185843508,-778.15,0.00015999,2]
[419330823,1775185843519,-310.83988768,0.00015999,2]
[419330824,1775185843964,-867.29626824,0.00015564,2]
[419330825,1775185844009,-1441.65226089,0.00015564,2]
[419330826,1775185844021,-1460.05147087,0.00015564,2]
[419330827,1775185844031,-467.31011232,0.00015999,2]
[419330828,1775185844040,-688.56836749,0.00015999,2]
[419330829,1775185844075,-89.58163251,0.00015999,2]
[419330830,1775185844085,-235.43860749,0.00015999,2]
[419330831,1775185844313,-542.71139251,0.00015999,2]
[419330832,1775185844323,-778.15,0.00015999,2]
[419330833,1775185844332,-778.19715828,0.00015999,2]
[419330834,1775185844342,-153.3326,0.00015999,2]
[419330835,1775185844351,-194.07757091,0.00015999,2]
[419330836,1775185844361,-500.0,0.00015999,2]
[419330837,1775185844371,-500.0,0.00015999,2]
[419330838,1775185844380,-500.0,0.00015999,2]
[419330839,1775185844390,-501.50264744,0.00015999,2]
[419330840,1775185844399,-165.32797757,0.00015999,2]
[419330841,1775185844408,-500.0,0.00015999,2]
[419330842,1775185844418,-500.0,0.00015999,2]
[419330843,1775185844427,-500.0,0.00015999,2]
[419330844,1775185844436,-500.0,0.00015999,2]
[419330845,1775185844445,-500.0,0.00015999,2]
[419330846,1775185844454,-500.0,0.00015999,2]
[419330847,1775185844463,-500.0,0.00015999,2]
[419330848,1775185844472,-500.0,0.00015999,2]
[419330849,1775185844482,-500.0,0.00015999,2]
[419330850,1775185844491,-500.0,0.00015999,2]
[419330851,1775185844500,-500.0,0.00015999,2]
[419330852,1775185844509,-500.0,0.00015999,2]
[419330853,1775185844519,-500.0,0.00015999,2]
[419330854,1775185844528,-500.0,0.00015999,2]
[419330855,1775185844537,-500.0,0.00015999,2]